bitfinex-derivatives/quotes_BNBF0:USTF0_20250608
["timestamp","ask_amount","ask_price","bid_price","bid_amount"]
[1749368754591,1.10507147,649.4,648.81,0.384]
[1749368754795,1.10507147,649.39,648.81,0.384]
[1749368755090,0.556,649.45,648.81,0.384]
[1749368755295,1.10535846,649.44,648.81,0.384]
[1749368755495,1.10535846,649.43,648.81,0.384]
[1749368755691,1.10537291,649.42,648.81,0.384]
[1749368755891,1.10537291,649.41,648.81,0.384]
[1749368756092,1.10537291,649.4,648.81,0.384]
[1749368756293,1.10537291,649.39,648.81,0.384]
[1749368756492,0.556,649.45,648.81,0.384]
[1749368756694,1.1053708,649.44,648.81,0.384]
[1749368756894,1.1053708,649.43,648.81,0.384]
[1749368757096,1.1053708,649.42,648.81,0.384]
[1749368757393,1.1053708,649.41,648.81,0.384]
[1749368757593,1.1053708,649.4,648.81,0.384]
[1749368757797,1.1053708,649.39,648.81,0.384]
[1749368757995,0.556,649.45,648.81,0.384]
[1749368758196,1.10538892,649.44,648.81,0.384]
[1749368758496,1.10538892,649.43,648.81,0.384]
[1749368758691,1.10538892,649.42,648.81,0.384]
[1749368758993,1.10538892,649.41,648.82,0.504]
[1749368759197,1.10538892,649.4,648.82,0.504]
[1749368759495,1.10538892,649.39,648.82,0.504]
[1749368759693,0.556,649.45,648.82,0.504]
[1749368759897,1.10538752,649.44,648.82,0.504]
[1749368760093,1.10538752,649.43,648.82,0.504]
[1749368760299,1.10538752,649.42,648.82,0.504]
[1749368760499,1.10538752,649.41,648.82,0.504]
[1749368760699,1.10538752,649.4,648.82,0.504]
[1749368760898,0.2680387,649.49,648.82,0.504]
[1749368760899,1.10538752,649.39,648.82,0.504]
[1749368761096,0.2680387,649.49,648.82,0.504]
[1749368761395,1.10539116,649.48,648.82,0.504]
[1749368761599,1.10539116,649.47,648.82,0.504]
[1749368761899,1.10539116,649.46,648.82,0.504]
[1749368762101,1.10539116,649.45,648.82,0.504]
[1749368762297,1.10539116,649.44,648.82,0.504]
[1749368762498,1.10539116,649.43,648.82,0.504]
[1749368762696,0.2680387,649.49,648.82,0.504]
[1749368762697,1.10539116,649.42,648.82,0.504]
[1749368762898,1.10539116,649.41,648.82,0.504]
[1749368763197,1.10539116,649.4,648.82,0.504]
[1749368763397,1.10539116,649.39,648.82,0.504]
[1749368763698,0.513,649.41,648.82,0.504]
[1749368763999,1.10531803,649.4,648.82,0.504]
[1749368764303,1.10531803,649.39,648.82,0.504]
[1749368764502,0.513,649.41,648.82,0.504]
[1749368764798,1.10516557,649.4,648.82,0.504]
[1749368765004,1.10516557,649.39,648.82,0.504]
[1749368765297,0.513,649.41,648.82,0.504]
[1749368765597,1.10513064,649.4,648.82,0.504]
[1749368765798,1.10513064,649.39,648.82,0.504]
[1749368766001,0.513,649.41,648.82,0.504]
[1749368766298,1.10505774,649.4,648.82,0.504]
[1749368766497,0.513,649.41,648.82,0.504]
[1749368766498,1.10505774,649.39,648.82,0.504]
[1749368766699,0.513,649.41,648.82,0.504]
[1749368766901,1.10509437,649.4,648.82,0.504]
[1749368767102,1.10509437,649.39,648.82,0.504]
[1749368767300,0.513,649.41,648.82,0.504]
[1749368767503,1.10509483,649.4,648.82,0.504]
[1749368767800,1.10509483,649.39,648.82,0.504]
[1749368768100,0.513,649.41,648.82,0.504]
[1749368768298,1.10511917,649.4,648.82,0.504]
[1749368768502,1.10511917,649.39,648.82,0.504]
[1749368768702,1.10511917,649.38,648.82,0.504]
[1749368769006,0.513,649.41,648.82,0.504]
[1749368769201,1.10522824,649.4,648.82,0.504]
[1749368769406,1.10522824,649.39,648.82,0.504]
[1749368769705,0.513,649.41,648.82,0.504]
[1749368769706,1.10522824,649.38,648.82,0.504]
[1749368769901,0.513,649.41,648.82,0.504]
[1749368770103,1.10528025,649.4,648.82,0.8122519]
[1749368770303,1.10528025,649.39,648.83,0.30824715]
[1749368770600,0.513,649.41,648.83,0.30824715]
[1749368770802,1.10535586,649.4,648.83,0.30824715]
[1749368771001,1.10535586,649.39,648.83,0.30824715]
[1749368771204,0.513,649.41,648.83,0.30824715]
[1749368771404,1.10532711,649.4,648.83,0.30824715]
[1749368771704,1.10532711,649.39,648.83,0.30824715]
[1749368771903,1.10532711,649.38,648.83,0.30824715]
[1749368772104,0.513,649.41,648.84,0.384]
[1749368772303,1.10541022,649.4,648.85,0.30823765]
[1749368772507,1.10541022,649.39,648.85,0.30823765]
[1749368772806,1.10541022,649.38,648.85,0.30823765]
[1749368773008,0.513,649.41,648.85,0.30823765]
[1749368773205,1.10577247,649.4,648.85,0.30823765]
[1749368773405,1.10577247,649.39,648.85,0.30823765]
[1749368773604,1.10577247,649.38,648.85,0.30823765]
[1749368773808,0.513,649.41,648.85,0.30823765]
[1749368774009,1.10578869,649.4,648.86,0.486]
[1749368774208,0.513,649.41,648.86,0.486]
[1749368774209,1.10578869,649.39,648.86,0.7942329]
[1749368774408,1.10578869,649.38,648.86,0.7942329]
[1749368774607,0.513,649.41,648.86,0.7942329]
[1749368774810,1.1057902,649.4,648.86,0.7942329]
[1749368775009,1.1057902,649.39,648.86,0.7942329]
[1749368775208,1.1057902,649.38,648.86,0.7942329]
[1749368775413,0.513,649.41,648.86,0.7942329]
[1749368775613,1.10578856,649.4,648.86,0.7942329]
[1749368775915,1.10578856,649.39,648.86,0.7942329]
[1749368776114,1.10578856,649.38,648.86,0.7942329]
[1749368776315,0.513,649.41,648.86,0.7942329]
[1749368776611,1.10575482,649.4,648.86,0.7942329]
[1749368776809,1.10575482,649.39,648.86,0.7942329]
[1749368777014,1.10575482,649.38,648.86,0.7942329]
[1749368777311,0.513,649.41,648.86,0.7942329]
[1749368777312,1.10575482,649.37,648.86,0.7942329]
[1749368777512,0.513,649.41,648.86,0.7942329]
[1749368777711,1.10576113,649.4,648.86,0.7942329]
[1749368778017,1.10576113,649.39,648.86,0.7942329]
[1749368778217,1.10576113,649.38,648.86,0.7942329]
[1749368778520,1.10576113,649.37,648.86,0.7942329]
[1749368778717,0.513,649.41,648.86,0.7942329]
[1749368779014,1.10582796,649.4,648.86,0.7942329]
[1749368779313,1.10582796,649.39,648.86,0.7942329]
[1749368779519,1.10582796,649.38,648.86,0.7942329]
[1749368779717,1.10582796,649.37,648.86,0.7942329]
[1749368779918,0.513,649.41,648.86,0.7942329]
[1749368780214,1.10581905,649.4,648.86,0.7942329]
[1749368780519,1.10581905,649.39,648.86,0.7942329]
[1749368780819,1.10581905,649.38,648.86,0.7942329]
[1749368781118,1.10581905,649.37,648.86,0.7942329]
[1749368781417,0.513,649.41,648.86,0.7942329]
[1749368781615,1.10548988,649.4,648.86,0.7942329]
[1749368781813,1.10548988,649.39,648.86,0.7942329]
[1749368782018,1.10548988,649.38,648.86,0.7942329]
[1749368782214,1.10548988,649.37,648.86,0.7942329]
[1749368782415,0.513,649.41,648.86,0.7942329]
[1749368782719,1.1054794,649.4,648.86,0.7942329]
[1749368782919,1.1054794,649.39,648.86,0.7942329]
[1749368783118,1.1054794,649.38,648.86,0.7942329]
[1749368783316,1.1054794,649.37,648.86,0.7942329]
[1749368783520,0.513,649.41,648.86,0.7942329]
[1749368783722,1.10543308,649.4,648.86,0.7942329]
[1749368784021,1.10543308,649.39,648.86,0.7942329]
[1749368784217,1.10543308,649.38,648.86,0.7942329]
[1749368784416,1.10543308,649.37,648.86,0.7942329]
[1749368784616,0.513,649.41,648.86,0.7942329]
[1749368784821,1.10544416,649.4,648.86,0.7942329]
[1749368785118,1.10544416,649.39,648.86,0.7942329]
[1749368785321,1.10544416,649.38,648.86,0.7942329]
[1749368785522,1.10544416,649.37,648.86,0.7942329]
[1749368785718,0.513,649.41,648.86,0.7942329]
[1749368786019,1.10545996,649.4,648.86,0.7942329]
[1749368786218,1.10545996,649.39,648.86,0.7942329]
[1749368786421,1.10545996,649.38,648.86,0.7942329]
[1749368786617,1.10545996,649.37,648.86,0.7942329]
[1749368786820,0.513,649.41,648.86,0.7942329]
[1749368787023,1.10552549,649.4,648.86,0.7942329]
[1749368787218,1.10552549,649.39,648.86,0.7942329]
[1749368787418,1.10552549,649.38,648.86,0.7942329]
[1749368787622,0.513,649.41,648.86,0.7942329]
[1749368787819,1.10551124,649.4,648.86,0.7942329]
[1749368788022,1.10551124,649.39,648.86,0.3082329]
[1749368788221,1.10551124,649.38,648.86,0.3082329]
[1749368788425,0.513,649.41,648.86,0.3082329]
[1749368788623,1.1055111,649.4,648.86,0.3082329]
[1749368788924,1.1055111,649.39,648.86,0.3082329]
[1749368789124,1.1055111,649.38,648.86,0.3082329]
[1749368789321,0.513,649.41,648.86,0.3082329]
[1749368789522,1.10525142,649.4,648.86,0.3082329]
[1749368789722,1.10525142,649.39,648.87,0.384]
[1749368789922,1.10525142,649.38,648.87,0.384]
[1749368790127,0.513,649.41,648.87,0.384]
[1749368790321,1.1051572,649.4,648.87,0.384]
[1749368790522,1.1051572,649.39,648.87,0.384]
[1749368790724,1.1051572,649.38,648.88,0.569]
[1749368790927,0.513,649.41,648.88,0.569]
[1749368791223,1.10515623,649.4,648.88,0.569]
[1749368791426,0.513,649.41,648.88,0.569]
[1749368791427,1.10515623,649.39,648.88,0.569]
[1749368791628,1.10515623,649.38,648.88,0.569]
[1749368791925,0.513,649.41,648.88,0.569]
[1749368792122,1.10516257,649.4,648.88,0.569]
[1749368792324,1.10516257,649.39,648.88,0.569]
[1749368792527,1.10516257,649.38,648.88,0.569]
[1749368792829,0.513,649.41,648.88,0.569]
[1749368793128,1.10514224,649.4,648.88,0.569]
[1749368793322,1.10514224,649.39,648.88,0.569]
[1749368793527,1.10514224,649.38,648.88,0.569]
[1749368793726,0.513,649.41,648.88,0.569]
[1749368793928,1.105101,649.4,648.88,0.569]
[1749368794129,1.105101,649.39,648.88,0.569]
[1749368794332,1.105101,649.38,648.88,0.569]
[1749368794625,0.513,649.41,648.88,0.569]
[1749368794830,1.10510107,649.4,648.88,0.569]
[1749368795029,1.10510107,649.39,648.88,0.569]
[1749368795229,1.10510107,649.38,648.88,0.569]
[1749368795427,0.513,649.41,648.88,0.569]
[1749368795631,1.10510662,649.4,648.88,0.569]
[1749368795831,1.10510662,649.39,648.88,0.569]
[1749368796028,1.10510662,649.38,648.88,0.569]
[1749368796330,0.513,649.41,648.88,0.569]
[1749368796531,1.10510442,649.4,648.88,0.569]
[1749368796728,1.10510442,649.39,648.88,0.569]
[1749368796930,1.10510442,649.38,648.88,0.569]
[1749368797226,0.513,649.41,648.88,0.569]
[1749368797430,1.10504172,649.4,648.88,0.569]
[1749368797630,1.10504172,649.39,648.88,0.569]
[1749368797930,1.10504172,649.38,648.88,0.569]
[1749368798232,0.513,649.41,648.88,0.569]
[1749368798429,1.10503307,649.4,648.88,0.569]
[1749368798732,1.10503307,649.39,648.88,0.569]
[1749368798928,1.10503307,649.38,648.88,0.569]
[1749368799133,0.513,649.41,648.88,0.569]
[1749368799333,1.10496167,649.4,648.88,0.569]
[1749368799533,1.10496167,649.39,648.88,0.569]
[1749368799829,1.10496167,649.38,648.88,0.569]
[1749368800033,0.513,649.41,648.88,0.569]
[1749368800231,1.10494175,649.4,648.88,0.569]
[1749368800434,1.10494175,649.39,648.88,0.569]
[1749368800732,0.513,649.41,648.88,0.569]
[1749368800931,1.10495179,649.4,648.88,0.569]
[1749368801131,1.10495179,649.39,648.88,0.569]
[1749368801433,1.10495179,649.38,648.88,0.569]
[1749368801634,0.513,649.41,648.88,0.569]
[1749368801831,1.10494239,649.4,648.88,0.569]
[1749368802037,1.10494239,649.39,648.88,0.569]
[1749368802230,1.10494239,649.38,648.88,0.569]
[1749368802434,0.513,649.41,648.88,0.569]
[1749368802731,1.10488308,649.4,648.88,0.569]
[1749368802931,1.10488308,649.39,648.88,0.569]
[1749368803132,1.10488308,649.38,648.88,0.569]
[1749368803331,0.513,649.41,648.88,0.569]
[1749368803533,1.10488927,649.4,648.88,0.569]
[1749368803733,1.10488927,649.39,648.88,0.569]
[1749368803936,1.10488927,649.38,648.88,0.569]
[1749368804237,0.513,649.41,648.88,0.569]
[1749368804432,1.1048902,649.4,648.88,0.569]
[1749368804735,1.1048902,649.39,648.88,0.569]
[1749368804936,1.1048902,649.38,648.88,0.569]
[1749368805232,0.513,649.41,648.88,0.569]
[1749368805431,1.10488999,649.4,648.88,0.569]
[1749368805633,1.10488999,649.39,648.88,0.569]
[1749368805939,1.10488999,649.38,648.88,0.569]
[1749368806232,0.513,649.41,648.88,0.569]
[1749368806432,1.10488686,649.4,648.88,0.569]
[1749368806631,1.10488686,649.39,648.88,0.569]
[1749368806831,1.10488686,649.38,648.88,0.569]
[1749368807030,0.2680387,649.49,648.88,0.569]
[1749368807232,1.10488964,649.48,648.88,0.569]
[1749368807431,1.10488964,649.47,648.88,0.569]
[1749368807633,1.10488964,649.46,648.88,0.569]
[1749368807836,1.10488964,649.45,648.88,0.569]
[1749368808034,1.10488964,649.44,648.88,0.569]
[1749368808237,1.10488964,649.43,648.88,0.569]
[1749368808440,1.10488964,649.42,648.88,0.569]
[1749368808637,1.10488964,649.41,648.88,0.569]
[1749368808833,1.10488964,649.4,648.88,0.569]
[1749368809038,1.10488964,649.39,648.88,0.569]
[1749368809234,1.10488964,649.38,648.88,0.569]
[1749368809438,0.2680387,649.49,648.88,0.569]
[1749368809638,1.104758,649.48,648.88,0.569]
[1749368809835,1.104758,649.47,648.88,0.569]
[1749368810035,1.104758,649.46,648.88,0.569]
[1749368810238,1.104758,649.45,648.88,0.569]
[1749368810440,1.104758,649.44,648.88,0.569]
[1749368810739,1.104758,649.43,648.88,0.569]
[1749368810939,1.104758,649.42,648.88,0.569]
[1749368811236,1.104758,649.41,648.88,0.569]
[1749368811434,1.104758,649.4,648.88,0.569]
[1749368811641,1.104758,649.39,648.88,0.569]
[1749368811838,1.104758,649.38,648.88,0.569]
[1749368812042,0.535,649.46,648.88,0.569]
[1749368812240,1.10474132,649.45,648.88,0.569]
[1749368812440,1.10474132,649.44,648.88,0.569]
[1749368812639,1.10474132,649.43,648.88,0.569]
[1749368812846,1.10474132,649.42,648.88,0.569]
[1749368813042,1.10474132,649.41,648.88,0.569]
[1749368813244,0.535,649.46,648.88,0.569]
[1749368813245,1.10474132,649.4,648.88,0.569]
[1749368813441,1.10474132,649.39,648.88,0.569]
[1749368813642,1.10474132,649.38,648.88,0.569]
[1749368813941,1.10486385,649.37,648.88,0.569]
[1749368814241,0.535,649.46,648.88,0.569]
[1749368814442,1.10486692,649.45,648.88,0.569]
[1749368814641,1.10486692,649.44,648.88,0.569]
[1749368814845,1.10486692,649.43,648.88,0.569]
[1749368815046,1.10486692,649.42,648.88,0.569]
[1749368815247,1.10486692,649.41,648.88,0.569]
[1749368815543,1.10486692,649.4,648.88,0.569]
[1749368815746,1.10486692,649.39,648.88,0.569]
[1749368815947,1.10486692,649.38,648.88,0.569]
[1749368816243,0.535,649.46,648.88,0.569]
[1749368816546,1.10487444,649.45,648.88,0.569]
[1749368816746,1.10487444,649.44,648.88,0.569]
[1749368816942,1.10487444,649.43,648.87,0.384]
[1749368817246,1.10487444,649.42,648.87,0.384]
[1749368817446,1.10487444,649.41,648.87,0.384]
[1749368817644,1.10487444,649.4,648.87,0.384]
[1749368817846,1.10487444,649.39,648.86,0.3082329]
[1749368818045,1.10487444,649.38,648.86,0.3082329]
[1749368818248,1.10487444,649.37,648.86,0.3082329]
[1749368818446,0.535,649.46,648.86,0.3082329]
[1749368818649,1.10488878,649.45,648.86,0.3082329]
[1749368818850,1.10488878,649.44,648.86,0.3082329]
[1749368819048,1.10488878,649.43,648.86,0.3082329]
[1749368819249,1.10488878,649.42,648.86,0.3082329]
[1749368819447,1.10488878,649.41,648.86,0.3082329]
[1749368819652,1.10488878,649.4,648.86,0.3082329]
[1749368819849,1.10488878,649.39,648.86,0.3082329]
[1749368820050,1.10488878,649.38,648.87,0.586]
[1749368820349,1.10488257,649.37,648.87,0.586]
[1749368820652,0.535,649.46,648.87,0.586]
[1749368820850,1.10488142,649.45,648.87,0.586]
[1749368821048,1.10488142,649.44,648.87,0.586]
[1749368821249,1.10488142,649.43,648.87,0.586]
[1749368821448,1.10488142,649.42,648.88,0.384]
[1749368821652,1.10488142,649.41,648.88,0.384]
[1749368821855,1.10488142,649.4,648.88,0.384]
[1749368822057,1.10488142,649.39,648.88,0.384]
[1749368822257,1.10488142,649.38,648.88,0.384]
[1749368822457,1.10488142,649.37,648.88,0.384]
[1749368822657,0.535,649.46,648.88,0.384]
[1749368822856,1.10488469,649.45,648.88,0.384]
[1749368823053,1.10488469,649.44,648.88,0.384]
[1749368823354,1.10488469,649.43,648.88,0.384]
[1749368823656,1.10488469,649.42,648.88,0.384]
[1749368823854,1.10488469,649.41,648.88,0.384]
[1749368824158,1.10488469,649.4,648.88,0.384]
[1749368824357,1.10488469,649.39,648.88,0.384]
[1749368824557,1.10488469,649.38,648.88,0.384]
[1749368824757,1.10488469,649.37,648.88,0.384]
[1749368824955,0.535,649.46,648.88,0.384]
[1749368825155,1.1049224,649.45,648.88,0.384]
[1749368825454,1.1049224,649.44,648.88,0.384]
[1749368825653,1.1049224,649.43,648.88,0.384]
[1749368825853,1.1049224,649.42,648.88,0.384]
[1749368826057,1.1049224,649.41,648.88,0.384]
[1749368826356,1.1049224,649.4,648.88,0.384]
[1749368826554,1.1049224,649.39,648.88,0.384]
[1749368826763,1.1049224,649.38,648.88,0.384]
[1749368826962,0.535,649.46,648.88,0.384]
[1749368827258,1.10492465,649.45,648.88,0.384]
[1749368827556,1.10492465,649.44,648.88,0.384]
[1749368827761,1.10492465,649.43,648.88,0.384]
[1749368827961,1.10492465,649.42,648.88,0.384]
[1749368828159,1.10492465,649.41,648.88,0.384]
[1749368828458,1.10492465,649.4,648.88,0.384]
[1749368828657,1.10492465,649.39,648.88,0.384]
[1749368828856,1.10492465,649.38,648.88,0.384]
[1749368829057,1.10492465,649.37,648.88,0.384]
[1749368829260,0.535,649.46,648.88,0.384]
[1749368829459,1.10498,649.45,648.88,0.384]
[1749368829661,1.10498,649.44,648.88,0.384]
[1749368829857,1.10498,649.43,648.88,0.384]
[1749368830062,1.10498,649.42,648.88,0.384]
[1749368830263,1.10498,649.41,648.88,0.384]
[1749368830558,1.10498,649.4,648.88,0.384]
[1749368830762,1.10498,649.39,648.88,0.384]
[1749368830959,1.10498,649.38,648.88,0.384]
[1749368831163,1.10498,649.37,648.88,0.384]
[1749368831364,0.535,649.46,648.88,0.384]
[1749368831562,1.10496973,649.45,648.88,0.384]
[1749368831763,1.10496973,649.44,648.88,0.384]
[1749368831961,1.10496973,649.43,648.88,0.384]
[1749368832163,1.10496973,649.42,648.88,0.384]
[1749368832361,1.10496973,649.41,648.88,0.384]
[1749368832660,1.10496973,649.4,648.88,0.384]
[1749368832863,1.10496973,649.39,648.88,0.384]
[1749368833064,1.10496973,649.38,648.88,0.384]
[1749368833266,1.10496973,649.37,648.88,0.384]
[1749368833465,1.10496973,649.36,648.88,0.384]
[1749368833666,1.10496973,649.35,648.88,0.384]
[1749368833860,1.10496973,649.34,648.88,0.384]
[1749368834065,1.10496973,649.33,648.88,0.384]
[1749368834365,1.10496973,649.32,648.88,0.384]
[1749368834562,1.10496973,649.31,648.88,0.384]
[1749368834766,0.535,649.46,648.88,0.384]
[1749368834967,1.10395437,649.45,648.88,0.384]
[1749368835267,1.10395437,649.44,648.88,0.384]
[1749368835568,1.10395437,649.43,648.88,0.384]
[1749368835762,1.10395437,649.42,648.88,0.384]
[1749368835963,0.535,649.46,648.88,0.384]
[1749368835964,1.10395437,649.41,648.88,0.384]
[1749368836167,1.10395437,649.4,648.88,0.384]
[1749368836464,1.10395437,649.39,648.88,0.384]
[1749368836664,1.10395437,649.38,648.88,0.384]
[1749368836868,1.10395437,649.37,648.88,0.384]
[1749368837064,1.10395437,649.36,648.88,0.384]
[1749368837269,1.10395437,649.35,648.88,0.384]
[1749368837470,1.10395437,649.34,648.88,0.384]
[1749368837670,1.10395437,649.33,648.88,0.384]
[1749368837865,1.10395437,649.32,648.88,0.384]
[1749368838169,1.10395437,649.31,648.88,0.384]
[1749368838368,0.535,649.46,648.88,0.384]
[1749368838567,1.10358554,649.45,648.88,0.384]
[1749368838769,1.10358554,649.44,648.88,0.384]
[1749368839070,1.10358554,649.43,648.88,0.384]
[1749368839269,0.535,649.46,648.88,0.384]
[1749368839270,1.10358554,649.42,648.88,0.384]
[1749368839566,1.10358554,649.41,648.88,0.384]
[1749368839767,1.10358554,649.4,648.88,0.384]
[1749368839968,1.10358554,649.39,648.88,0.384]
[1749368840170,1.10358554,649.38,648.88,0.384]
[1749368840467,1.10358554,649.37,648.88,0.384]
[1749368840772,1.10346065,649.36,648.88,0.384]
[1749368841067,1.10346065,649.35,648.88,0.384]
[1749368841267,1.10346065,649.34,648.88,0.384]
[1749368841569,0.535,649.46,648.88,0.384]
[1749368841771,1.10341421,649.45,648.88,0.384]
[1749368841973,1.10341421,649.44,648.88,0.384]
[1749368842268,1.10341421,649.43,648.88,0.384]
[1749368842472,1.10341421,649.42,648.86,0.3082329]
[1749368842771,1.10341421,649.41,648.86,0.3082329]
[1749368842971,1.10341421,649.4,648.86,0.3082329]
[1749368843171,1.10341421,649.39,648.86,0.3082329]
[1749368843471,1.10341421,649.38,648.86,0.3082329]
[1749368843672,1.10341421,649.37,648.86,0.3082329]
[1749368843971,1.10341421,649.36,648.86,0.3082329]
[1749368844172,1.10341421,649.35,648.86,0.3082329]
[1749368844472,0.535,649.46,648.86,0.3082329]
[1749368844768,1.10343519,649.45,648.86,0.3082329]
[1749368844968,1.10343519,649.44,648.86,0.3082329]
[1749368845172,1.10343519,649.43,648.87,0.542]
[1749368845367,1.10343519,649.42,648.87,0.542]
[1749368845572,1.10343519,649.41,648.87,0.542]
[1749368845773,1.10343519,649.4,648.87,0.542]
[1749368845974,1.10343519,649.39,648.87,0.542]
[1749368846273,1.10343519,649.38,648.88,0.384]
[1749368846469,1.10343519,649.37,648.88,0.384]
[1749368846770,1.10343519,649.36,648.88,0.384]
[1749368846973,1.10343519,649.35,648.88,0.384]
[1749368847170,0.535,649.46,648.88,0.384]
[1749368847375,1.10339959,649.45,648.88,0.384]
[1749368847671,1.10339959,649.44,648.88,0.384]
[1749368847869,1.10339959,649.43,648.88,0.384]
[1749368848070,1.10339959,649.42,648.88,0.384]
[1749368848274,1.10339959,649.41,648.88,0.384]
[1749368848475,1.10339959,649.4,648.88,0.384]
[1749368848675,1.10339959,649.39,648.88,0.384]
[1749368848876,1.10339959,649.38,648.88,0.384]
[1749368849073,1.10339959,649.37,648.88,0.384]
[1749368849371,1.10339959,649.36,648.88,0.384]
[1749368849572,1.10339959,649.35,648.88,0.384]
[1749368849873,0.535,649.46,648.88,0.384]
[1749368850072,1.10382006,649.45,648.88,0.384]
[1749368850274,1.10382006,649.44,648.88,0.384]
[1749368850474,1.10382006,649.43,648.88,0.384]
[1749368850777,1.10382006,649.42,648.88,0.384]
[1749368850973,1.10382006,649.41,648.88,0.384]
[1749368851274,1.10382006,649.4,648.88,0.384]
[1749368851474,1.10382006,649.39,648.88,0.384]
[1749368851679,1.10377796,649.38,648.88,0.384]
[1749368851875,1.10377796,649.37,648.88,0.384]
[1749368852076,1.10377796,649.36,648.88,0.384]
[1749368852275,1.10377796,649.35,648.88,0.384]
[1749368852479,0.535,649.46,648.88,0.384]
[1749368852677,1.1037889,649.45,648.88,0.384]
[1749368852980,1.1037889,649.44,648.88,0.384]
[1749368853177,1.1037889,649.43,648.88,0.384]
[1749368853378,1.1037889,649.42,648.88,0.384]
[1749368853577,1.1037889,649.41,648.88,0.384]
[1749368853777,1.1037889,649.4,648.88,0.384]
[1749368854081,1.1037889,649.39,648.88,0.384]
[1749368854281,1.1037889,649.38,648.88,0.384]
[1749368854581,1.1037889,649.37,648.88,0.384]
[1749368854778,0.535,649.46,648.88,0.384]
[1749368854779,1.1037889,649.36,648.88,0.384]
[1749368854978,1.1037889,649.35,648.88,0.384]
[1749368855178,0.535,649.46,648.88,0.384]
[1749368855376,1.10374937,649.45,648.88,0.384]
[1749368855579,1.10374937,649.44,648.88,0.384]
[1749368855776,1.10374937,649.43,648.88,0.384]
[1749368855976,1.10374937,649.42,648.88,0.384]
[1749368856278,1.10374937,649.41,648.88,0.384]
[1749368856477,0.535,649.46,648.88,0.384]
[1749368856478,1.10374937,649.4,648.88,0.384]
[1749368856680,1.10374937,649.39,648.88,0.384]
[1749368856878,1.10374937,649.38,648.88,0.384]
[1749368857084,1.10374937,649.37,648.88,0.384]
[1749368857380,1.10374937,649.36,648.88,0.384]
[1749368857582,1.10374937,649.35,648.88,0.384]
[1749368857779,0.535,649.46,648.88,0.384]
[1749368858080,1.10387891,649.45,648.88,0.384]
[1749368858278,1.10387891,649.44,648.88,0.384]
[1749368858480,1.10387891,649.43,648.88,0.384]
[1749368858678,1.10387891,649.42,648.88,0.384]
[1749368858882,1.10387891,649.41,648.88,0.384]
[1749368859085,1.10387891,649.4,648.88,0.384]
[1749368859285,1.10387891,649.39,648.88,0.384]
[1749368859482,1.10387891,649.38,648.88,0.384]
[1749368859688,1.10387891,649.37,648.88,0.384]
[1749368859886,1.10387891,649.36,648.88,0.384]
[1749368860084,1.10387891,649.35,648.88,0.384]
[1749368860289,0.535,649.46,648.88,0.384]
[1749368860587,1.10390969,649.45,648.88,0.384]
[1749368860784,0.535,649.46,648.88,0.384]
[1749368860785,1.10390969,649.44,648.88,0.384]
[1749368860989,1.10390969,649.43,648.88,0.384]
[1749368861185,1.10390969,649.42,648.88,0.384]
[1749368861385,1.10390969,649.41,648.88,0.384]
[1749368861686,1.10390969,649.4,648.88,0.384]
[1749368861885,1.10390969,649.39,648.88,0.384]
[1749368862090,1.10390969,649.38,648.88,0.384]
[1749368862390,1.10390969,649.37,648.88,0.384]
[1749368862588,1.10390969,649.36,648.88,0.384]
[1749368862787,1.10390969,649.35,648.88,0.384]
[1749368862986,0.2680387,649.49,648.88,0.384]